[Event "15e Open International de Quenza"]
[Site "Chess.com"]
[Date "2026.07.05"]
[Round "09"]
[White "Grimaldi, Vincent"]
[Black "Lagarde, Maxime"]
[Result "0-1"]
[WhiteElo "1636"]
[BlackElo "2583"]
[TimeControl "300+3"]
[Link "https://www.chess.com/fr/events/15e-open-international-de-quenza/09/Grimaldi_Vincent-Lagarde_Maxime"]

1. d4 {[%clk 0:05:03]} 1... f5 {[%clk 0:05:03]} 2. c4 {[%clk 0:05:01]} 2... Nf6
{[%clk 0:05:03]} 3. Nc3 {[%clk 0:05:01]} 3... d6 {[%clk 0:05:03]} 4. e3 {[%clk
0:04:55]} 4... g6 {[%clk 0:05:03]} 5. Bd3 {[%clk 0:04:49]} 5... Bg7 {[%clk
0:05:03]} 6. Nge2 {[%clk 0:04:44]} 6... e5 {[%clk 0:05:03]} 7. O-O {[%clk
0:04:40]} 7... O-O {[%clk 0:05:03]} 8. b4 {[%clk 0:04:11]} 8... Nc6 {[%clk
0:05:03]} 9. a3 {[%clk 0:04:04]} 9... g5 {[%clk 0:04:55]} 10. b5 {[%clk
0:03:36]} 10... Ne7 {[%clk 0:04:55]} 11. Qc2 {[%clk 0:03:30]} 11... e4 {[%clk
0:04:55]} 12. Bxe4 {[%clk 0:03:13]} 12... fxe4 {[%clk 0:04:55]} 13. Ng3 {[%clk
0:03:07]} 13... d5 {[%clk 0:04:55]} 14. cxd5 {[%clk 0:02:55]} 14... Nexd5 {[%clk
0:04:55]} 15. Ncxe4 {[%clk 0:02:32]} 15... Nxe4 {[%clk 0:04:47]} 16. Nxe4 {[%clk
0:02:25]} 16... Bf5 {[%clk 0:04:47]} 17. f3 {[%clk 0:02:15]} 17... g4 {[%clk
0:04:47]} 18. Kh1 {[%clk 0:02:01]} 18... Qh4 {[%clk 0:04:30]} 19. Qc4 {[%clk
0:01:23]} 19... Bxe4 {[%clk 0:04:25]} 0-1

[Event "15e Open International de Quenza"]
[Site "Chess.com"]
[Date "2026.07.05"]
[Round "09"]
[White "Fressinet, Laurent"]
[Black "Pantalacci, Antoine Marie"]
[Result "1-0"]
[WhiteElo "2565"]
[BlackElo "1636"]
[TimeControl "300+3"]
[Link "https://www.chess.com/fr/events/15e-open-international-de-quenza/09/Fressinet_Laurent-Pantalacci_Antoine_Marie"]

1. d4 {[%clk 0:05:03]} 1... Nf6 {[%clk 0:05:03]} 2. Nf3 {[%clk 0:05:03]} 2... d6
{[%clk 0:05:03]} 3. Nc3 {[%clk 0:04:59]} 3... g6 {[%clk 0:05:03]} 4. e4 {[%clk
0:04:59]} 4... Bg7 {[%clk 0:05:03]} 5. Be3 {[%clk 0:04:59]} 5... O-O {[%clk
0:04:54]} 6. Qd2 {[%clk 0:04:59]} 6... Nbd7 {[%clk 0:04:47]} 7. Bh6 {[%clk
0:04:56]} 7... e5 {[%clk 0:04:43]} 8. O-O-O {[%clk 0:04:54]} 8... c6 {[%clk
0:04:30]} 9. Bxg7 {[%clk 0:04:49]} 9... Kxg7 {[%clk 0:04:30]} 10. dxe5 {[%clk
0:04:49]} 10... dxe5 {[%clk 0:04:10]} 11. Nxe5 {[%clk 0:04:46]} 11... Qe7 {[%clk
0:03:53]} 12. Nxd7 {[%clk 0:04:43]} 12... Bxd7 {[%clk 0:03:46]} 13. Qd6 {[%clk
0:04:37]} 13... Qxd6 {[%clk 0:03:26]} 14. Rxd6 {[%clk 0:04:37]} 14... Rad8
{[%clk 0:03:26]} 15. Be2 {[%clk 0:04:30]} 15... Be6 {[%clk 0:03:11]} 16. Rhd1
{[%clk 0:04:23]} 16... Rd7 {[%clk 0:03:11]} 17. e5 {[%clk 0:04:06]} 17... Nd5
{[%clk 0:02:45]} 18. Rxd7 {[%clk 0:04:06]} 18... Bxd7 {[%clk 0:02:41]} 19. Nxd5
{[%clk 0:04:03]} 19... cxd5 {[%clk 0:02:41]} 20. Bf3 {[%clk 0:04:03]} 20... Re8
{[%clk 0:02:33]} 21. Bxd5 {[%clk 0:03:59]} 21... b6 {[%clk 0:02:13]} 22. Bxf7
{[%clk 0:03:55]} 22... Kxf7 {[%clk 0:02:13]} 23. Rxd7+ {[%clk 0:03:55]} 23...
Ke6 {[%clk 0:02:13]} 24. Rxa7 {[%clk 0:03:49]} 24... Kxe5 {[%clk 0:02:10]} 25.
Rxh7 {[%clk 0:03:48]} 25... Ra8 {[%clk 0:02:04]} 26. Rb7 {[%clk 0:03:36]} 26...
Rxa2 {[%clk 0:01:57]} 27. Rxb6 {[%clk 0:03:36]} 27... Ra1+ {[%clk 0:01:57]} 28.
Kd2 {[%clk 0:03:36]} 28... Rh1 {[%clk 0:01:47]} 29. Rxg6 {[%clk 0:03:31]} 29...
Rxh2 {[%clk 0:01:47]} 30. b4 {[%clk 0:03:31]} 30... Rh8 {[%clk 0:01:44]} 31. b5
{[%clk 0:03:26]} 31... Rd8+ {[%clk 0:01:44]} 32. Kc3 {[%clk 0:03:25]} 32... Rc8+
{[%clk 0:01:44]} 33. Kb3 {[%clk 0:03:19]} 33... Rb8 {[%clk 0:01:44]} 34. c4
{[%clk 0:03:17]} 34... Kd4 {[%clk 0:01:42]} 35. Kb4 {[%clk 0:03:17]} 35... Re8
{[%clk 0:01:32]} 36. Rd6+ {[%clk 0:03:17]} 36... Ke5 {[%clk 0:01:32]} 37. Rd1
{[%clk 0:03:17]} 37... Rf8 {[%clk 0:01:31]} 38. Rd2 {[%clk 0:03:16]} 38... Rg8
{[%clk 0:01:31]} 39. b6 {[%clk 0:03:16]} 39... Rxg2 {[%clk 0:01:23]} 40. f4+
{[%clk 0:03:16]} 40... Kxf4 {[%clk 0:01:23]} 41. Rxg2 {[%clk 0:03:16]} 41... Kf3
{[%clk 0:01:23]} 42. Rg8 {[%clk 0:03:16]} 1-0

[Event "15e Open International de Quenza"]
[Site "Chess.com"]
[Date "2026.07.05"]
[Round "09"]
[White "Costa, Laurent Jacques"]
[Black "Maurizzi, MarcAndria"]
[Result "0-1"]
[WhiteElo "1635"]
[BlackElo "2556"]
[TimeControl "300+3"]
[Link "https://www.chess.com/fr/events/15e-open-international-de-quenza/09/Costa_Laurent_Jacques-Maurizzi_MarcAndria"]

1. e4 {[%clk 0:05:03]} 1... d6 {[%clk 0:04:57]} 2. d4 {[%clk 0:04:59]} 2... Nf6
{[%clk 0:04:54]} 3. Nc3 {[%clk 0:04:59]} 3... Nbd7 {[%clk 0:04:54]} 4. Nf3
{[%clk 0:04:49]} 4... e5 {[%clk 0:04:54]} 5. Be3 {[%clk 0:04:43]} 5... Be7
{[%clk 0:04:54]} 6. h3 {[%clk 0:04:35]} 6... c6 {[%clk 0:04:54]} 7. Be2 {[%clk
0:04:24]} 7... Qc7 {[%clk 0:04:49]} 8. a3 {[%clk 0:04:18]} 8... b5 {[%clk
0:04:47]} 9. b4 {[%clk 0:04:18]} 9... Bb7 {[%clk 0:04:46]} 10. O-O {[%clk
0:04:04]} 10... O-O {[%clk 0:04:42]} 11. Bd3 {[%clk 0:03:48]} 11... a6 {[%clk
0:04:38]} 12. Qc1 {[%clk 0:02:57]} 12... Rfe8 {[%clk 0:04:38]} 13. Re1 {[%clk
0:02:55]} 13... Bf8 {[%clk 0:04:38]} 14. Qb2 {[%clk 0:02:36]} 14... c5 {[%clk
0:04:29]} 15. dxc5 {[%clk 0:02:33]} 15... dxc5 {[%clk 0:04:29]} 16. Ne2 {[%clk
0:02:17]} 16... c4 {[%clk 0:04:29]} 17. Rac1 {[%clk 0:01:45]} 17... Rac8 {[%clk
0:04:26]} 18. Ng3 {[%clk 0:01:23]} 18... cxd3 {[%clk 0:04:26]} 19. cxd3 {[%clk
0:01:23]} 19... Qb8 {[%clk 0:04:26]} 20. Nf5 {[%clk 0:01:19]} 20... Rxc1 {[%clk
0:03:59]} 21. Rxc1 {[%clk 0:01:15]} 21... Rc8 {[%clk 0:03:59]} 22. d4 {[%clk
0:01:03]} 22... Rxc1+ {[%clk 0:03:57]} 23. Qxc1 {[%clk 0:01:03]} 23... Bxe4
{[%clk 0:03:57]} 24. Bg5 {[%clk 0:00:36]} 24... Bxf5 {[%clk 0:03:57]} 25. Bxf6
{[%clk 0:00:33]} 25... Nxf6 {[%clk 0:03:56]} 26. Nxe5 {[%clk 0:00:32]} 26... Qc8
{[%clk 0:03:56]} 27. Qf4 {[%clk 0:00:26]} 27... Nd5 {[%clk 0:03:56]} 28. Qg3
{[%clk 0:00:15]} 28... f6 {[%clk 0:03:56]} 29. Nf3 {[%clk 0:00:11]} 29... Qc1+
{[%clk 0:03:56]} 30. Kh2 {[%clk 0:00:11]} 30... Nf4 {[%clk 0:03:56]} 31. Nh4
{[%clk 0:00:00]} 31... Ne2 {[%clk 0:03:56]} 0-1

[Event "15e Open International de Quenza"]
[Site "Chess.com"]
[Date "2026.07.05"]
[Round "09"]
[White "Fedorchuk, Sergey A."]
[Black "Barq, Matteu"]
[Result "1-0"]
[WhiteElo "2530"]
[BlackElo "1629"]
[TimeControl "300+3"]
[Link "https://www.chess.com/fr/events/15e-open-international-de-quenza/09/Fedorchuk_Sergey_A_-Barq_Matteu"]

1. e4 {[%clk 0:05:03]} 1... e5 {[%clk 0:05:03]} 2. Nf3 {[%clk 0:05:03]} 2... Nc6
{[%clk 0:05:03]} 3. Bb5 {[%clk 0:05:02]} 3... Nf6 {[%clk 0:05:03]} 4. d3 {[%clk
0:05:02]} 4... d6 {[%clk 0:05:03]} 5. c4 {[%clk 0:04:58]} 5... a6 {[%clk
0:05:03]} 6. Ba4 {[%clk 0:04:45]} 6... Bd7 {[%clk 0:05:03]} 7. Be3 {[%clk
0:04:43]} 7... Be7 {[%clk 0:05:03]} 8. h3 {[%clk 0:04:43]} 8... O-O {[%clk
0:05:03]} 9. Nc3 {[%clk 0:04:43]} 9... h6 {[%clk 0:05:00]} 10. O-O {[%clk
0:04:43]} 10... Nh7 {[%clk 0:05:00]} 11. Bxc6 {[%clk 0:04:39]} 11... Bxc6 {[%clk
0:05:00]} 12. d4 {[%clk 0:04:39]} 12... Ng5 {[%clk 0:04:33]} 13. dxe5 {[%clk
0:04:39]} 13... Nxf3+ {[%clk 0:04:33]} 14. Qxf3 {[%clk 0:04:39]} 14... dxe5
{[%clk 0:04:28]} 15. Rad1 {[%clk 0:04:39]} 15... Qc8 {[%clk 0:04:21]} 16. Nd5
{[%clk 0:04:14]} 16... Qe6 {[%clk 0:04:04]} 17. Nxc7 {[%clk 0:04:14]} 17... Qxc4
{[%clk 0:03:57]} 18. Nxa8 {[%clk 0:04:14]} 18... Rxa8 {[%clk 0:03:57]} 19. b3
{[%clk 0:03:59]} 19... Qxe4 {[%clk 0:03:57]} 20. Qxe4 {[%clk 0:03:59]} 20...
Bxe4 {[%clk 0:03:57]} 21. Rd7 {[%clk 0:03:55]} 21... Bf6 {[%clk 0:03:50]} 22.
Bb6 {[%clk 0:03:43]} 22... Bc6 {[%clk 0:03:44]} 23. Rd2 {[%clk 0:03:41]} 23...
Re8 {[%clk 0:03:36]} 24. Rfd1 {[%clk 0:03:40]} 24... Kh7 {[%clk 0:03:36]} 25.
Bd8 {[%clk 0:03:36]} 25... Re6 {[%clk 0:03:13]} 26. Rd6 {[%clk 0:03:23]} 26...
Rxd6 {[%clk 0:02:49]} 27. Rxd6 {[%clk 0:03:23]} 27... Bxd8 {[%clk 0:02:49]} 28.
Rxd8 {[%clk 0:03:23]} 28... f6 {[%clk 0:02:49]} 29. f3 {[%clk 0:03:19]} 29...
Kg6 {[%clk 0:02:49]} 30. Kf2 {[%clk 0:03:19]} 30... Kf5 {[%clk 0:02:49]} 31. Ke3
{[%clk 0:03:18]} 31... h5 {[%clk 0:02:43]} 32. h4 {[%clk 0:03:11]} 32... g6
{[%clk 0:02:43]} 33. Rd6 {[%clk 0:02:31]} 33... g5 {[%clk 0:02:02]} 34. hxg5
{[%clk 0:02:03]} 34... Kxg5 {[%clk 0:02:02]} 35. g3 {[%clk 0:02:03]} 35... Kf5
{[%clk 0:01:47]} 36. Rd8 {[%clk 0:02:01]} 36... e4 {[%clk 0:01:40]} 37. fxe4+
{[%clk 0:01:57]} 37... Bxe4 {[%clk 0:01:40]} 38. Rh8 {[%clk 0:01:57]} 38... Bb1
{[%clk 0:01:36]} 39. Rxh5+ {[%clk 0:01:44]} 39... Kg6 {[%clk 0:01:36]} 40. Rh2
{[%clk 0:01:44]} 40... f5 {[%clk 0:01:33]} 41. Kf4 {[%clk 0:01:44]} 41... Be4
{[%clk 0:01:32]} 42. g4 {[%clk 0:01:44]} 42... Bd3 {[%clk 0:01:25]} 43. Rd2
{[%clk 0:01:44]} 43... Bb1 {[%clk 0:01:21]} 44. gxf5+ {[%clk 0:01:43]} 44... Kf7
{[%clk 0:01:06]} 45. Ke5 {[%clk 0:01:43]} 45... Ke7 {[%clk 0:00:56]} 46. f6+
{[%clk 0:01:43]} 1-0

[Event "15e Open International de Quenza"]
[Site "Chess.com"]
[Date "2026.07.05"]
[Round "09"]
[White "Gianni, Paul"]
[Black "Sumets, Andrey"]
[Result "0-1"]
[WhiteElo "1625"]
[BlackElo "2470"]
[TimeControl "300+3"]
[Link "https://www.chess.com/fr/events/15e-open-international-de-quenza/09/Gianni_Paul-Sumets_Andrey"]

1. e4 {[%clk 0:05:03]} 1... e6 {[%clk 0:05:03]} 2. d4 {[%clk 0:05:03]} 2... d5
{[%clk 0:05:03]} 3. e5 {[%clk 0:05:03]} 3... c5 {[%clk 0:05:03]} 4. c3 {[%clk
0:05:03]} 4... Nc6 {[%clk 0:05:03]} 5. Nf3 {[%clk 0:05:03]} 5... Bd7 {[%clk
0:05:03]} 6. Be2 {[%clk 0:05:01]} 6... Rc8 {[%clk 0:05:03]} 7. Nbd2 {[%clk
0:04:57]} 7... cxd4 {[%clk 0:04:47]} 8. cxd4 {[%clk 0:04:57]} 8... Qb6 {[%clk
0:04:47]} 9. Nb3 {[%clk 0:04:57]} 9... a5 {[%clk 0:04:47]} 10. a4 {[%clk
0:04:51]} 10... Bb4+ {[%clk 0:04:47]} 11. Bd2 {[%clk 0:04:41]} 11... Bxd2+
{[%clk 0:04:47]} 12. Nbxd2 {[%clk 0:04:41]} 12... Nxd4 {[%clk 0:04:45]} 13. Nxd4
{[%clk 0:04:41]} 13... Qxd4 {[%clk 0:04:45]} 14. Nf3 {[%clk 0:04:36]} 14...
Qxd1+ {[%clk 0:04:40]} 15. Rxd1 {[%clk 0:04:36]} 15... Bxa4 {[%clk 0:04:35]} 16.
Ra1 {[%clk 0:04:27]} 16... Bd7 {[%clk 0:04:21]} 17. O-O {[%clk 0:04:22]} 17...
b6 {[%clk 0:04:21]} 18. Rac1 {[%clk 0:04:19]} 18... Ne7 {[%clk 0:04:17]} 19.
Rxc8+ {[%clk 0:04:19]} 19... Nxc8 {[%clk 0:04:13]} 20. Rc1 {[%clk 0:04:19]}
20... Kd8 {[%clk 0:04:02]} 21. Ng5 {[%clk 0:04:12]} 21... Be8 {[%clk 0:03:57]}
22. Bb5 {[%clk 0:04:03]} 22... h6 {[%clk 0:03:07]} 23. Bxe8 {[%clk 0:03:44]}
23... Rxe8 {[%clk 0:03:07]} 24. Nxf7+ {[%clk 0:03:44]} 24... Kd7 {[%clk
0:03:07]} 25. g4 {[%clk 0:02:41]} 25... Rf8 {[%clk 0:03:06]} 26. Nd6 {[%clk
0:02:40]} 26... Nxd6 {[%clk 0:03:06]} 27. exd6 {[%clk 0:02:40]} 27... Kxd6
{[%clk 0:03:06]} 28. Kg2 {[%clk 0:02:39]} 28... Rf4 {[%clk 0:03:04]} 29. Kg3
{[%clk 0:02:36]} 29... Rb4 {[%clk 0:03:04]} 30. Rc2 {[%clk 0:02:36]} 30... g5
{[%clk 0:03:04]} 31. h4 {[%clk 0:02:36]} 31... Rb3+ {[%clk 0:03:04]} 32. Kg2
{[%clk 0:02:34]} 32... gxh4 {[%clk 0:03:04]} 33. f4 {[%clk 0:02:26]} 33... Rg3+
{[%clk 0:03:04]} 34. Kf2 {[%clk 0:02:26]} 34... Rxg4 {[%clk 0:03:04]} 35. Ke3
{[%clk 0:02:24]} 35... Rg3+ {[%clk 0:03:04]} 36. Kd4 {[%clk 0:02:24]} 36... Rf3
{[%clk 0:03:04]} 37. Rh2 {[%clk 0:02:19]} 37... Rxf4+ {[%clk 0:03:04]} 38. Ke3
{[%clk 0:02:19]} 38... Rb4 {[%clk 0:03:04]} 39. Kd3 {[%clk 0:02:17]} 39... a4
{[%clk 0:03:00]} 40. Kc3 {[%clk 0:02:17]} 40... Rb3+ {[%clk 0:03:00]} 41. Kd4
{[%clk 0:02:16]} 41... e5# {[%clk 0:02:56]} 0-1

[Event "15e Open International de Quenza"]
[Site "Chess.com"]
[Date "2026.07.05"]
[Round "09"]
[White "Maze, Sebastien"]
[Black "Cesari, Pierre-Jean"]
[Result "1-0"]
[WhiteElo "2455"]
[BlackElo "1617"]
[TimeControl "300+3"]
[Link "https://www.chess.com/fr/events/15e-open-international-de-quenza/09/Maze_Sebastien-Cesari_Pierre_Jean"]

1. d4 {[%clk 0:05:03]} 1... Nf6 {[%clk 0:05:03]} 2. Nf3 {[%clk 0:05:03]} 2... d5
{[%clk 0:04:58]} 3. Bg5 {[%clk 0:05:03]} 3... e6 {[%clk 0:04:58]} 4. Nbd2 {[%clk
0:05:03]} 4... Be7 {[%clk 0:04:56]} 5. e3 {[%clk 0:05:03]} 5... O-O {[%clk
0:04:55]} 6. Bd3 {[%clk 0:05:03]} 6... c5 {[%clk 0:04:49]} 7. c3 {[%clk
0:05:03]} 7... b6 {[%clk 0:04:44]} 8. Ne5 {[%clk 0:05:03]} 8... Nfd7 {[%clk
0:04:38]} 9. Bxe7 {[%clk 0:04:21]} 9... Qxe7 {[%clk 0:04:36]} 10. f4 {[%clk
0:04:21]} 10... c4 {[%clk 0:04:28]} 11. Bc2 {[%clk 0:04:21]} 11... Qh4+ {[%clk
0:04:08]} 12. g3 {[%clk 0:04:21]} 12... Qe7 {[%clk 0:04:08]} 13. Qh5 {[%clk
0:04:07]} 13... g6 {[%clk 0:03:52]} 14. Qe2 {[%clk 0:04:07]} 14... f6 {[%clk
0:03:49]} 15. Nxd7 {[%clk 0:04:02]} 15... Nxd7 {[%clk 0:03:48]} 16. h4 {[%clk
0:04:02]} 16... e5 {[%clk 0:03:37]} 17. h5 {[%clk 0:04:02]} 17... e4 {[%clk
0:03:21]} 18. hxg6 {[%clk 0:03:56]} 18... hxg6 {[%clk 0:03:21]} 19. b3 {[%clk
0:03:43]} 19... b5 {[%clk 0:03:19]} 20. a4 {[%clk 0:03:43]} 20... b4 {[%clk
0:02:57]} 21. bxc4 {[%clk 0:03:43]} 21... Ba6 {[%clk 0:02:51]} 22. Qh2 {[%clk
0:03:34]} 22... Qg7 {[%clk 0:02:47]} 23. cxb4 {[%clk 0:03:25]} 23... f5 {[%clk
0:02:31]} 24. b5 {[%clk 0:03:25]} 24... Bc8 {[%clk 0:02:24]} 25. Bb3 {[%clk
0:03:12]} 25... Nf6 {[%clk 0:02:22]} 26. cxd5 {[%clk 0:03:12]} 26... Re8 {[%clk
0:02:05]} 27. Nc4 {[%clk 0:03:06]} 27... Ng4 {[%clk 0:02:05]} 28. Qh4 {[%clk
0:03:06]} 28... Bd7 {[%clk 0:01:50]} 29. Ne5 {[%clk 0:03:06]} 29... Nxe3 {[%clk
0:01:40]} 30. Ke2 {[%clk 0:03:01]} 30... Ng4 {[%clk 0:00:55]} 31. Nxd7 {[%clk
0:03:01]} 31... Rac8 {[%clk 0:00:33]} 32. d6+ {[%clk 0:02:59]} 1-0

[Event "15e Open International de Quenza"]
[Site "Chess.com"]
[Date "2026.07.05"]
[Round "09"]
[White "Zhivotov, Igor"]
[Black "Brodowski, Piotr"]
[Result "0-1"]
[WhiteElo "1574"]
[BlackElo "2435"]
[TimeControl "300+3"]
[Link "https://www.chess.com/fr/events/15e-open-international-de-quenza/09/Zhivotov_Igor-Brodowski_Piotr"]

1. d4 {[%clk 0:05:03]} 1... Nf6 {[%clk 0:04:58]} 2. Nc3 {[%clk 0:05:03]} 2... g6
{[%clk 0:04:56]} 3. e4 {[%clk 0:04:56]} 3... d6 {[%clk 0:04:56]} 4. Be3 {[%clk
0:04:56]} 4... a6 {[%clk 0:04:56]} 5. f3 {[%clk 0:04:55]} 5... b5 {[%clk
0:04:48]} 6. g4 {[%clk 0:04:47]} 6... Bb7 {[%clk 0:04:46]} 7. Qd2 {[%clk
0:04:26]} 7... h5 {[%clk 0:04:46]} 8. g5 {[%clk 0:04:20]} 8... Nfd7 {[%clk
0:04:46]} 9. h4 {[%clk 0:04:01]} 9... Bg7 {[%clk 0:04:46]} 10. d5 {[%clk
0:03:56]} 10... c5 {[%clk 0:04:36]} 11. dxc6 {[%clk 0:03:49]} 11... Nxc6 {[%clk
0:04:36]} 12. O-O-O {[%clk 0:03:28]} 12... O-O {[%clk 0:04:32]} 13. f4 {[%clk
0:02:59]} 13... Rc8 {[%clk 0:03:40]} 14. Nf3 {[%clk 0:02:43]} 14... b4 {[%clk
0:03:23]} 15. Nd5 {[%clk 0:02:29]} 15... Qa5 {[%clk 0:03:16]} 16. Kb1 {[%clk
0:02:12]} 16... e6 {[%clk 0:03:16]} 17. Nf6+ {[%clk 0:01:54]} 17... Nxf6 {[%clk
0:03:16]} 18. gxf6 {[%clk 0:01:54]} 18... Bxf6 {[%clk 0:03:16]} 19. Nd4 {[%clk
0:01:17]} 19... Nxd4 {[%clk 0:02:46]} 20. Bxd4 {[%clk 0:01:14]} 20... Bxe4
{[%clk 0:02:28]} 21. Bd3 {[%clk 0:00:22]} 21... Bxd3 {[%clk 0:02:28]} 22. Qxd3
{[%clk 0:00:22]} 22... Bxd4 {[%clk 0:02:28]} 23. Qxd4 {[%clk 0:00:22]} 23... Rc6
{[%clk 0:02:28]} 24. Rhe1 {[%clk 0:00:19]} 24... Rfc8 {[%clk 0:02:28]} 25. Re2
{[%clk 0:00:18]} 25... Qf5 {[%clk 0:02:28]} 26. Rdd2 {[%clk 0:00:16]} 26... a5
{[%clk 0:02:28]} 27. b3 {[%clk 0:00:16]} 27... d5 {[%clk 0:02:05]} 28. Qf2
{[%clk 0:00:16]} 28... Rc3 {[%clk 0:02:03]} 29. Re5 {[%clk 0:00:16]} 29... Qg4
{[%clk 0:02:03]} 30. Rg5 {[%clk 0:00:14]} 30... Qf3 {[%clk 0:02:00]} 31. Qd4
{[%clk 0:00:14]} 31... Qe3 {[%clk 0:01:55]} 32. Qxe3 {[%clk 0:00:12]} 32... Rxe3
{[%clk 0:01:55]} 33. Kb2 {[%clk 0:00:12]} 33... Kg7 {[%clk 0:01:50]} 34. Rgg2
{[%clk 0:00:09]} 34... Kf6 {[%clk 0:01:50]} 35. Rde2 {[%clk 0:00:09]} 35... Rxe2
{[%clk 0:01:48]} 36. Rxe2 {[%clk 0:00:09]} 36... Rc3 {[%clk 0:01:48]} 37. a4
{[%clk 0:00:09]} 37... Rf3 {[%clk 0:01:48]} 38. Rd2 {[%clk 0:00:05]} 38... Rxf4
{[%clk 0:01:48]} 39. c3 {[%clk 0:00:05]} 39... bxc3+ {[%clk 0:01:48]} 40. Kxc3
{[%clk 0:00:05]} 40... Rxh4 {[%clk 0:01:47]} 41. Rd4 {[%clk 0:00:04]} 41... Rh3+
{[%clk 0:01:41]} 42. Kc2 {[%clk 0:00:04]} 42... Ke5 {[%clk 0:01:41]} 43. Rd3
{[%clk 0:00:04]} 43... Rh4 {[%clk 0:01:41]} 44. Kd2 {[%clk 0:00:04]} 0-1

[Event "15e Open International de Quenza"]
[Site "Chess.com"]
[Date "2026.07.05"]
[Round "09"]
[White "Relange, Eloi"]
[Black "Gabino, Julien"]
[Result "1-0"]
[WhiteElo "2416"]
[BlackElo "1572"]
[TimeControl "300+3"]
[Link "https://www.chess.com/fr/events/15e-open-international-de-quenza/09/Relange_Eloi-Gabino_Julien"]

1. d4 {[%clk 0:05:03]} 1... f5 {[%clk 0:05:03]} 2. Nf3 {[%clk 0:05:03]} 2... Nf6
{[%clk 0:04:59]} 3. g3 {[%clk 0:05:03]} 3... b6 {[%clk 0:04:59]} 4. Bg2 {[%clk
0:05:03]} 4... Bb7 {[%clk 0:04:59]} 5. O-O {[%clk 0:05:03]} 5... e6 {[%clk
0:04:59]} 6. c4 {[%clk 0:05:03]} 6... d5 {[%clk 0:04:48]} 7. Nbd2 {[%clk
0:04:48]} 7... Bb4 {[%clk 0:04:41]} 8. Ne5 {[%clk 0:04:47]} 8... Nbd7 {[%clk
0:04:31]} 9. Ndf3 {[%clk 0:04:42]} 9... Bd6 {[%clk 0:04:15]} 10. Qa4 {[%clk
0:04:42]} 10... O-O {[%clk 0:04:03]} 11. Bf4 {[%clk 0:04:41]} 11... Nh5 {[%clk
0:03:39]} 12. Nxd7 {[%clk 0:04:36]} 12... Nxf4 {[%clk 0:03:34]} 13. gxf4 {[%clk
0:04:25]} 13... c6 {[%clk 0:03:16]} 14. Nxf8 {[%clk 0:04:25]} 14... Qxf8 {[%clk
0:03:16]} 15. Ne5 {[%clk 0:04:23]} 15... Qf6 {[%clk 0:02:32]} 16. Rac1 {[%clk
0:04:19]} 16... Rc8 {[%clk 0:02:05]} 17. Qxa7 {[%clk 0:04:13]} 17... Qe7 {[%clk
0:01:50]} 18. Qxb6 {[%clk 0:04:05]} 18... Bxe5 {[%clk 0:01:39]} 19. dxe5 {[%clk
0:03:56]} 19... Rb8 {[%clk 0:01:30]} 20. cxd5 {[%clk 0:03:55]} 20... exd5 {[%clk
0:01:18]} 21. Rxc6 {[%clk 0:03:54]} 21... Qd7 {[%clk 0:00:37]} 22. Rc7 {[%clk
0:03:51]} 22... Qd8 {[%clk 0:00:21]} 23. Rfc1 {[%clk 0:03:51]} 1-0

[Event "15e Open International de Quenza"]
[Site "Chess.com"]
[Date "2026.07.05"]
[Round "09"]
[White "De Surrel, Henri"]
[Black "Kosteniuk, Alexandra"]
[Result "0-1"]
[WhiteElo "1564"]
[BlackElo "2392"]
[TimeControl "300+3"]
[Link "https://www.chess.com/fr/events/15e-open-international-de-quenza/09/De_Surrel_Henri-Kosteniuk_Alexandra"]

1. d4 {[%clk 0:05:03]} 1... Nf6 {[%clk 0:05:03]} 2. Nd2 {[%clk 0:05:01]} 2... d5
{[%clk 0:05:03]} 3. Ngf3 {[%clk 0:05:01]} 3... g6 {[%clk 0:04:59]} 4. e3 {[%clk
0:04:59]} 4... Bg7 {[%clk 0:05:03]} 5. c3 {[%clk 0:04:59]} 5... O-O {[%clk
0:05:03]} 6. b4 {[%clk 0:04:58]} 6... Nbd7 {[%clk 0:04:59]} 7. a4 {[%clk
0:04:51]} 7... Re8 {[%clk 0:04:59]} 8. Bd3 {[%clk 0:04:51]} 8... e5 {[%clk
0:04:53]} 9. dxe5 {[%clk 0:04:43]} 9... Ng4 {[%clk 0:04:53]} 10. O-O {[%clk
0:04:26]} 10... Ndxe5 {[%clk 0:04:46]} 11. Nxe5 {[%clk 0:04:28]} 11... Nxe5
{[%clk 0:04:43]} 12. Be2 {[%clk 0:04:25]} 12... a5 {[%clk 0:04:43]} 13. b5
{[%clk 0:04:20]} 13... Bf5 {[%clk 0:04:43]} 14. Bb2 {[%clk 0:04:12]} 14... Nd3
{[%clk 0:04:23]} 15. Bxd3 {[%clk 0:04:08]} 15... Bxd3 {[%clk 0:04:23]} 16. Re1
{[%clk 0:04:08]} 16... c6 {[%clk 0:04:23]} 17. Nf3 {[%clk 0:03:58]} 17... Bc4
{[%clk 0:04:20]} 18. bxc6 {[%clk 0:03:55]} 18... bxc6 {[%clk 0:04:20]} 19. Qd2
{[%clk 0:03:45]} 19... Rb8 {[%clk 0:04:20]} 20. Rab1 {[%clk 0:03:42]} 20... c5
{[%clk 0:04:01]} 21. h3 {[%clk 0:03:21]} 21... Qc7 {[%clk 0:03:53]} 22. g3
{[%clk 0:03:08]} 22... Qc6 {[%clk 0:03:53]} 23. Ng5 {[%clk 0:02:55]} 23... h6
{[%clk 0:03:48]} 24. Nf3 {[%clk 0:02:55]} 24... Qxa4 {[%clk 0:03:48]} 25. Bc1
{[%clk 0:02:44]} 25... Rxb1 {[%clk 0:03:48]} 26. Kg2 {[%clk 0:02:35]} 26... Qc6
{[%clk 0:03:48]} 27. Qe2 {[%clk 0:02:25]} 0-1